{"text_format":"1","workbook":"xlsx","n_sheets":5,"sheets":["METADATA","Author Contributions","INFOPAGE","TITLEPAGE","Sayfa2"],"not_rendered":{"charts":0,"images":9,"macros":1,"external_links":0,"defined_names":4,"comments":0,"pivot_tables":0},"unopened":[],"bounds":{"document_bytes":16777216,"sheet_cells":100000,"rows_first":2000,"rows_last":500,"rows_between":2000,"halvings":0,"cell_chars":16384,"cell_head_chars":4096},"cells_cut":0,"cells_raw":0,"read":"whole","date_system":"1900"}

{"sheet":"METADATA","index":0,"n_rows":28,"n_cols":9,"rows_kept":28,"cut":false,"hidden":false,"merged":[[0,6,0,7],[19,0,19,2],[23,0,23,2],[22,0,22,2],[21,0,21,2],[20,0,20,2],[0,1,0,4],[1,0,7,0],[1,1,7,4],[20,3,20,4]]}
["Title of the manuscript",null,null,null,null,null,"KEYWORS"]
["Abstract",null,null,null,null,null,"Keyword 1"]
[null,null,null,null,null,null,"Keyword 2"]
[null,null,null,null,null,null,"Keyword 3"]
[null,null,null,null,null,null,"Keyword 4 (if available)"]
[null,null,null,null,null,null,"Keyword 5 (if available)"]
[null,null,null,null,null,null,"Keyword 6 (if available)"]
[null,null,null,null,null,null,"Keyword 7 (if available)"]
[]
[null,"First Name","Last Name","Afiliation","Adress","email adress","orcid Id","Academic Title","Author Contrubution rate"]
["Example:","Bekir Bora","Dedeoğlu","Nevşehir Hacı Bektaş Veli University","Nevşehir, Turkey","editor@jomat.org","0000-0002-0722-3392","Assoc. Prof.",0.4]
["1st Author"]
["2nd Author (if available)"]
["3rd Author (if available)"]
["4th Author (if available)"]
["5th Author (if available)"]
["6th Author (if available)"]
["7th Author (if available)"]
[]
["Does the research require an ethics committee report?",null,null,"No","Yes"]
["If the ethics committee report is not required, please select its justification.",null,null,"This research was conducted before January 1, 2020. For this reason, it is exempt from \"ULAKBIM TRDizin\" criterion."]
["If the ethics committee requires a report, please write \"Ethics committee\". "]
["If the ethics committee requires a report, please write \"Date of ethics committee decision\"."]
["If the ethics committee requires a report, please write \"Ethics committee decision number\"."]
[]
[]
["submission Date:",{"$f":"TODAY()","v":"2021-06-01"}]
[null,null,null,{"$f":"METADATA!B27","v":44348}]

{"sheet":"Author Contributions","index":1,"n_rows":34,"n_cols":41,"rows_kept":34,"cut":false,"hidden":false,"merged":[]}
[{"$f":"Sayfa2!A24","v":" "},{"$f":"Sayfa2!A25","v":" "},{"$f":"Sayfa2!A26","v":" "},{"$f":"Sayfa2!A27","v":" "},{"$f":"Sayfa2!A28","v":" "},{"$f":"Sayfa2!A29","v":" "},{"$f":"Sayfa2!A30","v":" "}]
[null,null,null,null,null,null,null,null,null,null,null,null,null,"Conceptualization","Conceptualization","Conceptualization","Conceptualization","Conceptualization",{"$f":"ISBLANK(L2)","v":true},{"$f":"ISBLANK(M2)","v":true},false,false,false,false,false,null,true,true,true,true,true,true,true,true,true,true,true,true,true,true,true]
[null,null,null,null,null,null,null,null,null,null,null,null,null,null,null,null,null,null,{"$f":"ISBLANK(L3)","v":true},{"$f":"ISBLANK(M3)","v":true},{"$f":"ISBLANK(N3)","v":true},{"$f":"ISBLANK(O3)","v":true},{"$f":"ISBLANK(P3)","v":true},{"$f":"ISBLANK(Q3)","v":true},{"$f":"ISBLANK(R3)","v":true},null,true,true,true,true,true,true,true,true,true,true,true,true,true,true,true]
[null,null,null,null,null,null,null,null,null,null,null,null,null,null,null,null,null,null,true,true,true,true,true,true,true,null,true,true,true,true,true,true,true,true,true,true,true,true,true,true,true]
[null,null,null,null,null,null,null,null,null,null,null,null,null,null,null,null,null,null,true,true,true,true,true,true,true,null,true,true,true,true,true,true,true,true,true,true,true,true,true,true,true]
[null,null,null,null,null,null,null,null,null,null,null,null,null,null,null,null,null,null,true,true,true,true,true,true,true,null,true,true,true,true,true,true,true,true,true,true,true,true,true,true,true]
[null,null,null,null,null,null,null,null,null,null,null,null,null,null,null,null,null,null,true,true,true,true,true,true,true,null,true,true,true,true,true,true,true,true,true,true,true,true,true,true,true]
[null,null,null,null,null,null,null,null,null,null,null,null,null,null,null,null,null,null,true,true,true,true,true,true,true,null,true,true,true,true,true,true,true,true,true,true,true,true,true,true,true]
[null,null,null,null,null,null,null,null,null,null,null,null,null,null,null,null,null,null,true,true,true,true,true,true,true,null,true,true,true,true,true,true,true,true,true,true,true,true,true,true,true]
[null,null,null,null,null,null,null,null,null,null,null,null,null,null,null,null,null,null,true,true,true,true,true,true,true,null,true,true,true,true,true,true,true,true,true,true,true,true,true,true,true]
[null,null,null,null,null,null,null,null,null,null,null,null,null,null,null,null,null,null,true,true,true,true,true,true,true,null,true,true,true,true,true,true,true,true,true,true,true,true,true,true,true]
[null,null,null,null,null,null,null,null,null,null,null,null,null,null,null,null,null,null,true,true,true,true,true,true,true,null,true,true,true,true,true,true,true,true,true,true,true,true,true,true,true]
[null,null,null,null,null,null,null,null,null,null,null,null,null,null,null,null,null,null,true,true,true,true,true,true,true,null,true,true,true,true,true,true,true,true,true,true,true,true,true,true,true]
[null,null,null,null,null,null,null,null,null,null,null,null,null,null,null,null,null,null,true,true,true,true,true,true,true,null,true,true,true,true,true,true,true,true,true,true,true,true,true,true,true]
[null,null,null,null,null,null,null,null,null,null,null,null,null,null,null,null,null,null,true,true,true,true,true,true,true,null,true,true,true,true,true,true,true,true,true,true,true,true,true,true,true]
[]
[]
[null,null,null,null,null,null,null,null,null,null,null,null,null,null,null,null,null,null,{"$f":"IF(S2=AA2,\"\",CONCATENATE(L2,\", \"))","v":""},{"$f":"IF(T2=AB2,\"\",CONCATENATE(M2,\", \"))","v":""},"Conceptualization, ","Conceptualization, ","Conceptualization, ","Conceptualization, ","Conceptualization, "]
[null,null,null,null,null,null,null,null,null,null,null,null,null,null,null,null,null,null,{"$f":"IF(S3=AA3,\"\",CONCATENATE(L3,\", \"))","v":""},"","","","","",""]
[null,null,null,null,null,null,null,null,null,null,null,null,null,null,null,null,null,null,"","","","","","",""]
[null,null,null,null,null,null,null,null,null,null,null,null,null,null,null,null,null,null,"","","","","","",""]
[null,null,null,null,null,null,null,null,null,null,null,null,null,null,null,null,null,null,"","","","","","",""]
[null,null,null,null,null,null,null,null,null,null,null,null,null,null,null,null,null,null,"","","","","","",""]
[null,null,null,null,null,null,null,null,null,null,null,null,null,null,null,null,null,null,"","","","","","",""]
[null,null,null,null,null,null,null,null,null,null,null,null,null,null,null,null,null,null,"","","","","","",""]
[null,null,null,null,null,null,null,null,null,null,null,null,null,null,null,null,null,null,"","","","","","",""]
[null,null,null,null,null,null,null,null,null,null,null,null,null,null,null,null,null,null,"","","","","","",""]
[null,null,null,null,null,null,null,null,null,null,null,null,null,null,null,null,null,null,"","","","","","",""]
[null,null,null,null,null,null,null,null,null,null,null,null,null,null,null,null,null,null,"","","","","","",""]
[null,null,null,null,null,null,null,null,null,null,null,null,null,null,null,null,null,null,"","","","","","",""]
[null,null,null,null,null,null,null,null,null,null,null,null,null,null,null,null,null,null,"","","","","","",""]
[null,null,null,null,null,null,null,null,null,null,null,null,null,null,null,null,null,null,"","","","","","",""]
[null,null,null,null,null,null,null,null,null,null,null,null,null,null,null,null,null,null,"","","","","","",""]
[null,null,null,null,null,null,null,null,null,null,null,null,null,null,null,null,null,null,{"$f":"CONCATENATE(S18,S19,S20,S21,S22,S23,S24,S25,S26,S27,S28,S29,S30,S31,)","v":""},{"$f":"CONCATENATE(T18,T19,T20,T21,T22,T23,T24,T25,T26,T27,T28,T29,T30,T31,)","v":""},"Conceptualization, ","Conceptualization, ","Conceptualization, ","Conceptualization, ","Conceptualization, "]

{"sheet":"INFOPAGE","index":2,"n_rows":26,"n_cols":19,"rows_kept":26,"cut":false,"hidden":true,"merged":[[15,3,15,9],[14,3,14,9],[9,1,9,11],[1,10,1,11],[0,0,0,12],[20,10,20,11],[19,10,19,11],[18,10,18,11],[17,3,17,9],[20,1,20,2],[17,10,17,11],[20,3,20,9],[19,1,19,2],[17,1,17,2],[15,1,15,2],[18,1,18,2],[2,3,2,9],[5,1,7,11],[8,1,8,11],[10,1,10,2],[10,3,11,11],[4,1,4,11],[14,10,14,11],[13,10,13,11],[13,3,13,9],[16,1,16,2],[16,3,16,9],[16,10,16,11],[14,1,14,2],[13,1,13,2],[1,3,1,9],[0,14,0,18],[3,3,3,9],[25,7,25,11],[24,7,24,11],[23,7,23,11],[19,3,19,9],[18,3,18,9],[25,2,25,6],[24,2,24,6],[22,2,22,11],[23,2,23,6],[21,1,21,11],[12,1,12,11],[15,10,15,11]]}
[null,null,null,null,null,null,null,null,null,null,null,null,null,null,"This field will be filled by the editor.\nBu alan editör tarafından doldurulacaktır"]
[null,null,null,"Journal of multidisciplinary academic tourism",null,null,null,null,null,null,"ISSN: 2645-9078",null,null,null,"Year","vol","issue","first page","last page"]
[null,null,null,{"$f":"CONCATENATE(O3,\", \",P3,\" (\",Q3,\"): \",R3,\"-\",S3)","v":"202x, vol (issue): xx-xx"},null,null,null,null,null,null,null,null,null,null,"202x","vol","issue","xx","xx"]
[null,null,null,{"$f":"CONCATENATE(O5,O3,\"-\",P3,\"-\",Q3,\"-\",R3)","v":"https://doi.org/10.31822/jomat.202x-vol-issue-xx"}]
[null,"INFO PAGE",null,null,null,null,null,null,null,null,null,null,null,null,"https://doi.org/10.31822/jomat."]
[null,{"$f":"METADATA!B1","v":0}]
[]
[]
[null,"Abstract"]
[null,{"$f":"METADATA!B2","v":0}]
[null,"Keywords: ",null,{"$f":"Sayfa2!D23","v":"0, 0, 0"}]
[]
[null,"Authors"]
[null,"Full Name",null,"Author contribution roles",null,null,null,null,null,null,"Contribution rate"]
[null,{"$f":"Sayfa2!C3","v":" :"},null,{"$f":"'Author Contributions'!S34","v":""},null,null,null,null,null,null,{"$f":"METADATA!I12","v":0}]
[null,{"$f":"IF(Sayfa2!B4=Sayfa2!A4,\"\",Sayfa2!C4)","v":""},null,{"$f":"IF(Sayfa2!D4=Sayfa2!E4,\"\",'Author Contributions'!T34)","v":""},null,null,null,null,null,null,{"$f":"IF(Sayfa2!D4=Sayfa2!E4,\"\",METADATA!I13)","v":""}]
[null,{"$f":"IF(Sayfa2!B5=Sayfa2!A5,\"\",Sayfa2!C5)","v":""},null,{"$f":"IF(Sayfa2!D5=Sayfa2!E5,\"\",'Author Contributions'!U34)","v":""},null,null,null,null,null,null,{"$f":"IF(Sayfa2!D5=Sayfa2!E5,\"\",METADATA!I14)","v":""}]
[null,{"$f":"IF(Sayfa2!B6=Sayfa2!A6,\"\",Sayfa2!C6)","v":""},null,{"$f":"IF(Sayfa2!D6=Sayfa2!E6,\"\",'Author Contributions'!V34)","v":""},null,null,null,null,null,null,{"$f":"IF(Sayfa2!D6=Sayfa2!E6,\"\",METADATA!I15)","v":""}]
[null,{"$f":"IF(Sayfa2!B7=Sayfa2!A7,\"\",Sayfa2!C7)","v":""},null,{"$f":"IF(Sayfa2!D7=Sayfa2!E7,\"\",'Author Contributions'!W34)","v":""},null,null,null,null,null,null,{"$f":"IF(Sayfa2!D7=Sayfa2!E7,\"\",METADATA!I16)","v":""}]
[null,{"$f":"IF(Sayfa2!B8=Sayfa2!A8,\"\",Sayfa2!C8)","v":""},null,{"$f":"IF(Sayfa2!D8=Sayfa2!E8,\"\",'Author Contributions'!X34)","v":""},null,null,null,null,null,null,{"$f":"IF(Sayfa2!D8=Sayfa2!E8,\"\",METADATA!I17)","v":""}]
[null,{"$f":"IF(Sayfa2!B9=Sayfa2!A9,\"\",Sayfa2!C9)","v":""},null,{"$f":"IF(Sayfa2!D9=Sayfa2!E9,\"\",'Author Contributions'!Y34)","v":""},null,null,null,null,null,null,{"$f":"IF(Sayfa2!D9=Sayfa2!E9,\"\",METADATA!I18)","v":""}]
[null,"Author statement: Author(s)  declare(s) that All procedures performed in studies involving human participants were in accordance with the ethical standards of the institutional and/or national research committee and with the 1964 Helsinki declaration and its later amendments or comparable ethical standards. Declaration of Conflicting Interests: The author(s) declared no potential conflicts of interest with respect to the research, authorship, and/or publication of this article"]
[null,null,{"$f":"IF(METADATA!D20=METADATA!E20,\"Ethics Committee Satatement: Ethics committee report is available for this research and it has been documented to the journal.\",Sayfa2!B45)","v":"This paper does not required ethics committee report\nJustification: This research was conducted before January 1, 2020. For this reason, it is exempt from \"ULAKBIM TRDizin\" criterion."}]
[null,null,{"$f":"IF(METADATA!D20=METADATA!E20,\"Ethics committee:\",\"\")","v":""}]
[null,null,{"$f":"IF(METADATA!E20=METADATA!D20,\"Date of ethics committee decision:\",\"\")","v":""}]
[null,null,{"$f":"IF(METADATA!E20=METADATA!D20,\"Ethics committee decision number:\",\"\")","v":""}]

{"sheet":"TITLEPAGE","index":3,"n_rows":20,"n_cols":11,"rows_kept":20,"cut":false,"hidden":true,"merged":[[20,1,20,10],[21,1,21,10],[22,1,22,5],[23,1,23,5],[24,1,24,5],[19,2,19,10],[18,0,18,1],[19,0,19,1],[18,2,18,10],[16,0,16,1],[17,0,17,1],[17,2,17,10],[16,2,16,10],[14,0,14,1],[15,0,15,1],[15,2,15,10],[14,2,14,10],[11,0,11,10],[12,0,12,1],[12,2,12,8],[12,9,12,10],[13,0,13,1],[13,2,13,10],[9,0,9,1],[9,2,10,10],[2,2,2,8],[3,0,3,10],[4,0,6,10],[7,0,7,10],[8,1,8,9]]}
[]
[]
[null,null,"Journal of multidisciplinary academic tourism",null,null,null,null,null,null,"ISSN:","2645-9078"]
["TITLE PAGE"]
[{"$f":"METADATA!B1","v":0}]
[]
[]
["Abstract"]
[null,{"$f":"METADATA!B2","v":0}]
["Keywords: ",null,{"$f":"Sayfa2!D23","v":"0, 0, 0"}]
[]
["Authors"]
[]
[{"$f":"Sayfa2!C3","v":" :"},null,{"$f":"Sayfa2!D3","v":", ,, , Email: , Orcid Id: "}]
[{"$f":"IF(Sayfa2!B4=Sayfa2!A4,\"\",Sayfa2!C4)","v":""},null,{"$f":"IF(Sayfa2!D4=Sayfa2!E4,\"\",Sayfa2!D4)","v":""}]
[{"$f":"IF(Sayfa2!B5=Sayfa2!A5,\"\",Sayfa2!C5)","v":""},null,{"$f":"IF(Sayfa2!D5=Sayfa2!E5,\"\",Sayfa2!D5)","v":""}]
[{"$f":"IF(Sayfa2!B6=Sayfa2!A6,\"\",Sayfa2!C6)","v":""},null,{"$f":"IF(Sayfa2!D6=Sayfa2!E6,\"\",Sayfa2!D6)","v":""}]
[{"$f":"IF(Sayfa2!B7=Sayfa2!A7,\"\",Sayfa2!C7)","v":""},null,{"$f":"IF(Sayfa2!D7=Sayfa2!E7,\"\",Sayfa2!D7)","v":""}]
[{"$f":"IF(Sayfa2!B8=Sayfa2!A8,\"\",Sayfa2!C8)","v":""},null,{"$f":"IF(Sayfa2!D8=Sayfa2!E8,\"\",Sayfa2!D8)","v":""}]
[{"$f":"IF(Sayfa2!B9=Sayfa2!A9,\"\",Sayfa2!C9)","v":""},null,{"$f":"IF(Sayfa2!D9=Sayfa2!E9,\"\",Sayfa2!D9)","v":""}]

{"sheet":"Sayfa2","index":4,"n_rows":45,"n_cols":6,"rows_kept":45,"cut":false,"hidden":true,"merged":[]}
[]
[]
[null,null,{"$f":"CONCATENATE(METADATA!B12,\" \",METADATA!C12,\":\")","v":" :"},{"$f":"CONCATENATE(METADATA!H12,\", ,\",METADATA!D12,\", \",METADATA!E12,\", Email: \",METADATA!F12,\", Orcid Id: \",METADATA!G12)","v":", ,, , Email: , Orcid Id: "}]
[true,{"$f":"ISBLANK(METADATA!B13)","v":true},{"$f":"CONCATENATE(METADATA!B13,\" \",METADATA!C13,\":\")","v":" :"},{"$f":"IF(B4=A4,\"Yok\",CONCATENATE(METADATA!H13,\", \",METADATA!D13,\", \",METADATA!E12,\", Email: \",METADATA!F13,\", Orcid Id: \",METADATA!G13))","v":"Yok"},"Yok"]
[true,{"$f":"ISBLANK(METADATA!B14)","v":true},{"$f":"CONCATENATE(METADATA!B14,\" \",METADATA!C14,\":\")","v":" :"},{"$f":"IF(B5=A5,\"Yok\",CONCATENATE(METADATA!H14,\", \",METADATA!D14,\", \",METADATA!E13,\", Email: \",METADATA!F14,\", Orcid Id: \",METADATA!G14))","v":"Yok"},"Yok"]
[true,{"$f":"ISBLANK(METADATA!B15)","v":true},{"$f":"CONCATENATE(METADATA!B15,\" \",METADATA!C15,\":\")","v":" :"},{"$f":"IF(B6=A6,\"Yok\",CONCATENATE(METADATA!H15,\", \",METADATA!D15,\", \",METADATA!E14,\", Email: \",METADATA!F15,\", Orcid Id: \",METADATA!G15))","v":"Yok"},"Yok"]
[true,{"$f":"ISBLANK(METADATA!B16)","v":true},{"$f":"CONCATENATE(METADATA!B16,\" \",METADATA!C16,\":\")","v":" :"},{"$f":"IF(B7=A7,\"Yok\",CONCATENATE(METADATA!H16,\", \",METADATA!D16,\", \",METADATA!E15,\", Email: \",METADATA!F16,\", Orcid Id: \",METADATA!G16))","v":"Yok"},"Yok"]
[true,{"$f":"ISBLANK(METADATA!B17)","v":true},{"$f":"CONCATENATE(METADATA!B17,\" \",METADATA!C17,\":\")","v":" :"},{"$f":"IF(B8=A8,\"Yok\",CONCATENATE(METADATA!H17,\", \",METADATA!D17,\", \",METADATA!E16,\", Email: \",METADATA!F17,\", Orcid Id: \",METADATA!G17))","v":"Yok"},"Yok"]
[true,{"$f":"ISBLANK(METADATA!B18)","v":true},{"$f":"CONCATENATE(METADATA!B18,\" \",METADATA!C17,\":\")","v":" :"},{"$f":"IF(B9=A9,\"Yok\",CONCATENATE(METADATA!H18,\", \",METADATA!D18,\", \",METADATA!E17,\", Email: \",METADATA!F18,\", Orcid Id: \",METADATA!G18))","v":"Yok"},"Yok"]
[]
[]
[]
[null,null,1,{"$f":"METADATA!H2","v":0},", "]
[null,null,2,{"$f":"METADATA!H3","v":0},", "]
[null,null,3,{"$f":"METADATA!H4","v":0},", ",{"$f":"CONCATENATE(D13,E13,D14,E14,D15,)","v":"0, 0, 0"}]
[true,{"$f":"ISBLANK(METADATA!H5)","v":true},4,{"$f":"IF(B16=A16,\"\",METADATA!H5)","v":""},", ",{"$f":"CONCATENATE(F15,E15,D16)","v":"0, 0, 0, "}]
[true,{"$f":"ISBLANK(METADATA!H6)","v":true},5,{"$f":"IF(B17=A17,\"\",METADATA!H6)","v":""},", ",{"$f":"CONCATENATE(F16,E16,D17)","v":"0, 0, 0, , "}]
[true,{"$f":"ISBLANK(METADATA!H7)","v":true},6,{"$f":"IF(B18=A18,\"\",METADATA!H7)","v":""},", ","0, 0, 0, , , "]
[true,{"$f":"ISBLANK(METADATA!H8)","v":true},7,{"$f":"IF(B19=A19,\"\",METADATA!H8)","v":""},", ","0, 0, 0, , , , "]
[]
[]
[]
[null,null,null,{"$f":"IF(B16=A16,F15,IF(B17=A17,F16,IF(B18=A18,F17,IF(B19=A19,F18,F19))))","v":"0, 0, 0"}]
[{"$f":"CONCATENATE(METADATA!B12,\" \",METADATA!C12)","v":" "},"Conceptualization"]
[{"$f":"CONCATENATE(METADATA!B13,\" \",METADATA!C13)","v":" "},"Methodology"]
[{"$f":"CONCATENATE(METADATA!B14,\" \",METADATA!C14)","v":" "},"Software"]
[{"$f":"CONCATENATE(METADATA!B15,\" \",METADATA!C15)","v":" "},"Validation"]
[{"$f":"CONCATENATE(METADATA!B16,\" \",METADATA!C16)","v":" "},"Formal analysis"]
[{"$f":"CONCATENATE(METADATA!B17,\" \",METADATA!C17)","v":" "},"Investigation"]
[{"$f":"CONCATENATE(METADATA!B18,\" \",METADATA!C18)","v":" "},"Resources"]
[null,"Data Curation"]
[null,"Writing - Original Draft"]
[null,"Writing - Review & Editing"]
[null,"Visualization"]
[null,"Supervision"]
[null,"Project administration"]
[null,"Funding acquisition"]
["Yes"]
["No"]
[]
["This research was conducted before January 1, 2020. For this reason, it is exempt from \"ULAKBIM TRDizin\" criterion."]
["The methodology of this study does not require an ethics committee report."]
[]
["This paper does not required ethics committee report","Justification: "]
["\n",{"$f":"CONCATENATE(A44,A45,B44,METADATA!D21)","v":"This paper does not required ethics committee report\nJustification: This research was conducted before January 1, 2020. For this reason, it is exempt from \"ULAKBIM TRDizin\" criterion."}]